Cogmind - Beta 9.6 @@@ ROGUE MODE // 2020.06.15 @ 07:40:33 Player: Vectis Result: Destroyed by D-53 Grenadier with Mini Grenade Launcher Performance ------------- Evolutions (0) 0 Regions Visited (4) 800 Robots Destroyed (50) 250 Value Destroyed (726) 726 Prototype IDs (22) 440 Alien Tech Used (0) 0 Bonus (300) 300 TOTAL SCORE: 2516 Bonus ------- Aligned with FarCom 300 Cogmind --------- Core Integrity 0/250 Matter 199/300 Energy 100/100 System Corruption 0% Temperature Cool (0) Movement Core (1350) Ox26 Location -9/Mines Parts ------- > --- POWER (1) -------- (None) > --- PROPULSION (2) --- (None) > --- UTILITY (2) ------ Humpback > --- WEAPON (2) ------- (None) > --- INVENTORY (24) --- Light Ion Engine Light Treads Potential Leg Potential Leg Wheel Wheel Wheel Wheel Medium Storage Unit High-capacity Storage Unit High-capacity Storage Unit High-capacity Storage Unit Humpback Large Matter Pod (150) Hacking Suite Hacking Suite EM Pulse Gun Medium Laser Particle Gun Guided Plasma Cannon Assault Rifle Assault Rifle Light Assault Rifle Peak State ------------ > --- POWER ------------ Improved Ion Engine > --- PROPULSION ------- Potential Leg Potential Leg > --- UTILITY ---------- Humpback > --- WEAPON ----------- Assault Rifle Light Assault Rifle > --- INVENTORY -------- Light Ion Engine Light Treads Wheel Wheel Wheel Wheel Small Storage Unit Small Storage Unit Medium Storage Unit Medium Storage Unit High-capacity Storage Unit High-capacity Storage Unit High-capacity Storage Unit Humpback Large Matter Pod Hacking Suite Hacking Suite EM Pulse Gun Medium Laser Particle Gun Assault Rifle Light Assault Rifle Grenade Launcher [Rating: 28] Favorites ----------- Power Ion Engine Engine Ion Engine Propulsion Wheel Treads Light Treads Leg Potential Leg Wheel Wheel Utility High-capacity Storage Unit Device Heat Sink Storage High-capacity Storage Unit Protection Light Armor Plating Weapon Light Assault Rifle Energy Gun EM Pulse Gun Ballistic Gun Light Assault Rifle Launcher Grenade Launcher Build | -11 -10 -10 -10 -9 ------- Run | Scr Mat Min Exi Min Slots Evolved . | . . . . . Power . | . . . . . Propulsion . | . . . . . Utility . | . . . . . Weapon . | . . . . . Parts Attached 28 | 6 14 2 5 1 Power 3 | 1 1 1 . . Engine 3 | 1 1 1 . . Core . | . . . . . Reactor . | . . . . . Propulsion 8 | 2 2 . 4 . Treads 2 | 2 . . . . Leg 2 | . . . 2 . Wheel 4 | . 2 . 2 . Hover . | . . . . . Flight . | . . . . . Utility 9 | 1 7 . 1 . Device 1 | . 1 . . . Storage 7 | 1 5 . 1 . Processor . | . . . . . Hackware . | . . . . . Protection 1 | . 1 . . . Artifact . | . . . . . Weapon 8 | 2 4 1 . 1 Energy Gun 2 | . 2 . . . Energy Cannon . | . . . . . Ballistic Gun 5 | 2 2 1 . . Ballistic Cannon . | . . . . . Launcher 1 | . . . . 1 Special Weapon . | . . . . . Impact Weapon . | . . . . . Slashing Weapon . | . . . . . Piercing Weapon . | . . . . . Special Melee Weapon . | . . . . . Unidentified Prototypes . | . . . . . Parts Lost 9 | . 3 1 . 5 Power 1 | . . . . 1 Propulsion 3 | . 1 . . 2 Utility . | . . . . . Weapon 5 | . 2 1 . 2 Highest Loss Streak 5 | . 1 1 . 5 Average Slot Usage (%) 95 | . 97 100 90 78 Engine 13 | . 14 14 14 13 Treads 12 | . 22 . . . Wheel 15 | . 4 28 27 26 Device 1 | . 2 . . . Storage 21 | . 20 28 20 14 Protection 2 | . 4 . . . Energy Gun 5 | . 8 2 . . Ballistic Gun 22 | . 18 25 28 20 Naked Turns . | . . . . . Heaviest Build 91 | 12 72 74 90 91 Greatest Support 60 | 40 40 20 60 20 Greatest Overweight (x) 29 | . 7 3 29 26 Average Overweight (x) 2 | . . 3 3 4 Largest Inventory Capacity 24 | 6 20 20 24 24 Average Capacity 14 | 5 9 20 21 24 Most Carried 24 | 4 18 20 24 24 Average Carried 13 | 1 8 19 20 24 Final Capacity 24 | 6 20 20 24 24 Final Carried 24 | 4 18 20 24 24 Class Distribution -------------------- 54% | Hauler-Mutant 45% | Mutant Dominant Class ---------------- Mutant | -10/Materials Hauler-Mutant | -10/Mines Hauler-Mutant | -10/Exiles Hauler-Mutant | -9/Mines Resources | -11 -10 -10 -10 -9 ----------- Run | Scr Mat Min Exi Min Matter Collected 892 | 207 537 48 100 . Remotely . | . . . . . Salvage Created 1282 | . 1125 104 . 53 Parts 64 | . 53 11 . . Haulers Intercepted 2 | . 2 . . . Recyclers Shooed 2 | . 2 . . . Parts Field Recycled . | . . . . . Retrieved Matter . | . . . . . Parts Self-Destructed . | . . . . . Prevented . | . . . . . Kills | -11 -10 -10 -10 -9 ------- Run | Scr Mat Min Exi Min Combat Hostiles Destroyed 38 | . 17 4 . 17 Guns 22 | . 17 4 . 1 AOE 16 | . . . . 16 Classes Destroyed 10 | . 8 1 . 1 Worker 1 | . . 1 . . Builder 1 | . 1 . . . Tunneler 2 | . 2 . . . Hauler 2 | . 2 . . . Recycler 2 | . 2 . . . Operator 3 | . 3 . . . Watcher 1 | . 1 . . . Swarmer 6 | . 3 3 . . Grunt 15 | . 14 1 . . Assembled 17 | . . . . 17 Best Kill Streak 17 | . 4 2 . 17 Combat Bots Only 17 | . 4 2 . 17 Max Kills in Single Turn 4 | . 1 1 . 4 Gunslinging . | . . . . . Exploded 4 | . . . . 4 Melee . | . . . . . Uniques/NPCs Destroyed . | . . . . . Combat | -11 -10 -10 -10 -9 -------- Run | Scr Mat Min Exi Min Damage Taken 1405 | . 626 147 . 632 Core 275 | . 77 21 . 177 Absorbed by Shields . | . . . . . Core Remaining (%) 100 | 100 . . . . Volleys Fired 130 | . 101 13 . 16 Largest 2 | . 2 2 . 2 Hottest 60 | . 60 60 . 50 Shots Fired 231 | . 188 26 . 17 Gun 220 | . 188 26 . 6 Cannon . | . . . . . Launcher 11 | . . . . 11 Special . | . . . . . Kinetic 151 | . 126 19 . 6 Thermal . | . . . . . Explosive 11 | . . . . 11 Electromagnetic 69 | . 62 7 . . Robot Hit Streak 16 | . 13 9 . 16 Robot Miss Streak 4 | . 4 3 . 3 Penetration Max . | . . . . . Secondary Targets . | . . . . . Shots Hit Robots 153 | . 129 14 . 10 Core Hits 96 | . 49 5 . 42 Critical Hits . | . . . . . Critical Kills . | . . . . . Critical Parts Destroyed . | . . . . . Melee Attacks . | . . . . . Impact . | . . . . . Slashing . | . . . . . Piercing . | . . . . . Sneak Attacks . | . . . . . Combat Hostiles . | . . . . . Follow-up Attacks . | . . . . . Damage Inflicted 2613 | . 1518 65 . 1030 Guns 1563 | . 1473 65 . 25 Cannons . | . . . . . Explosions 1050 | . 45 . . 1005 Melee . | . . . . . Ramming . | . . . . . Kinetic 855 | . 789 41 . 25 Thermal 45 | . 45 . . . Explosive 1005 | . . . . 1005 Electromagnetic 708 | . 684 24 . . Impact . | . . . . . Slashing . | . . . . . Piercing . | . . . . . Highest Corruption . | . . . . . Average Corruption . | . . . . . Corruption Purged . | . . . . . Overload Shots . | . . . . . Overflow Damage 19 | . . . . 19 Projectiles . | . . . . . Explosions 19 | . . . . 19 Melee . | . . . . . Knockbacks . | . . . . . Impact . | . . . . . Kinetic . | . . . . . Secondary . | . . . . . Self-Inflicted Damage . | . . . . . Shots . | . . . . . Rammed . | . . . . . Targets Rammed . | . . . . . Kicked . | . . . . . Crushed . | . . . . . Highest Temperature 106 | . 106 44 . 12 Average Temperature 24 | . 27 12 . 3 Received Heat Transfer 297 | . 288 9 . . Siege Activations . | . . . . . Robots Corrupted . | . . . . . Combat Hostiles . | . . . . . Parts Fried 2 | . 2 . . . Impact Corruptions . | . . . . . Robots Melted . | . . . . . Combat Hostiles . | . . . . . Parts Melted 1 | . 1 . . . Heat Transferred 50 | . 50 . . . Parts Sabotaged . | . . . . . Parts Stolen . | . . . . . Parts Stripped . | . . . . . Power Chain Reactions 1 | . 1 . . . Missiles Intercepted . | . . . . . Alert | -11 -10 -10 -10 -9 ------- Run | Scr Mat Min Exi Min Peak Influence 255 | . 255 125 . 15 Average Influence 92 | . 112 77 . . Maximum Alert Level 1 | . 1 . . . Low Security (%) 94 | 100 92 100 . 100 Level 1 5 | . 7 . . . Level 2 . | . . . . . Level 3 . | . . . . . Level 4 . | . . . . . Level 5 . | . . . . . High Security . | . . . . . Max Security . | . . . . . Squads Dispatched 5 | . 5 . . . Investigation 2 | . 2 . . . Extermination . | . . . . . Reinforcement 3 | . 3 . . . Assault . | . . . . . Garrison . | . . . . . Intercept . | . . . . . Construction Impeded . | . . . . . Haulers Reinforced . | . . . . . Stealth | -11 -10 -10 -10 -9 --------- Run | Scr Mat Min Exi Min Distress Signals 3 | . 3 . . . Communications Jammed . | . . . . . Distress Signals . | . . . . . Times Spotted 57 | . 36 6 . 15 Peak Tracking Total 9 | . 4 3 . 9 Tactical Retreats 2 | . 1 1 . . Traps | -11 -10 -10 -10 -9 ------- Run | Scr Mat Min Exi Min Traps Triggered 2 | . 2 . . . Indirectly . | . . . . . Trap Hack Attempts . | . . . . . Triggered . | . . . . . Disarmed . | . . . . . Reprogrammed . | . . . . . Reused . | . . . . . Traps Extracted . | . . . . . Installed . | . . . . . Triggered 1 | . . 1 . . Machines | -11 -10 -10 -10 -9 ---------- Run | Scr Mat Min Exi Min Machines Disabled 3 | . 2 1 . . Max in Single Turn 1 | . 1 1 . . Machines Sabotaged . | . . . . . Garrisons Compromised . | . . . . . Overloaded Fab Kills . | . . . . . Fab Network Shutdowns . | . . . . . Hacking | -11 -10 -10 -10 -9 --------- Run | Scr Mat Min Exi Min Machines Accessed 6 | . 4 . 2 . Terminals 4 | . 4 . . . Fabricators . | . . . . . Repair Stations . | . . . . . Recycling Units . | . . . . . Scanalyzers . | . . . . . Garrison Access . | . . . . . Total Hacks 9 | . 7 . 2 . Successful 6 | . 4 . 2 . Failed 3 | . 3 . . . Catastrophic . | . . . . . Database Lockouts . | . . . . . Manual 8 | . 7 . 1 . Terminals 7 | . 7 . . . Fabricators . | . . . . . Repair Stations . | . . . . . Recycling Units . | . . . . . Scanalyzers . | . . . . . Garrison Access . | . . . . . Terminal Hacks 5 | . 3 . 2 . Record 1 | . . . 1 . Part Schematic 1 | . 1 . . . Robot Analysis 2 | . 2 . . . EX-Prototype ID Bank 1 | . . . 1 . Fabricator Hacks . | . . . . . Repair Station Hacks . | . . . . . Recycling Unit Hacks . | . . . . . Scanalyzer . | . . . . . Garrison Access Hacks . | . . . . . Unauthorized Hacks 1 | . 1 . . . Terminals 1 | . 1 . . . Disrupt 1 | . 1 . . . Fabricators . | . . . . . Repair Stations . | . . . . . Recycling Units . | . . . . . Scanalyzers . | . . . . . Garrison Access . | . . . . . Data Cores Recovered . | . . . . . Used . | . . . . . Hacking Detections 3 | . 3 . . . Full Trace Events . | . . . . . Feedback Events . | . . . . . Feedback Blocked . | . . . . . Robot Schematics Acquired . | . . . . . Robots Built . | . . . . . Matter . | . . . . . Time . | . . . . . Total Robot Build Rating . | . . . . . Part Schematics Acquired 1 | . 1 . . . Parts Built . | . . . . . Matter . | . . . . . Time . | . . . . . Total Part Build Rating . | . . . . . Parts Repaired . | . . . . . Time . | . . . . . Parts Recycled . | . . . . . Recycled Matter . | . . . . . Retrieved Matter . | . . . . . Retrieved Components . | . . . . . Parts Scanalyzed . | . . . . . Part Schematics Acquired . | . . . . . Parts Damaged . | . . . . . Bothacking | -11 -10 -10 -10 -9 ------------ Run | Scr Mat Min Exi Min Used RIF Installer . | . . . . . Robots Hacked . | . . . . . Non-combat . | . . . . . Combat . | . . . . . Robot Hacks Applied . | . . . . . Relay Couplers Released . | . . . . . Robots Rewired . | . . . . . Allies Hacked . | . . . . . Hacks Repelled . | . . . . . Allies | -11 -10 -10 -10 -9 -------- Run | Scr Mat Min Exi Min Total Allies . | . . . . . Largest Group . | . . . . . Highest-Rated Group . | . . . . . Highest-Rated Ally . | . . . . . Total Orders . | . . . . . Ally Attacks . | . . . . . Total Damage . | . . . . . Kills . | . . . . . Allies Corrupted . | . . . . . Allies Melted . | . . . . . Intel | -11 -10 -10 -10 -9 ------- Run | Scr Mat Min Exi Min Robot Analysis Total 2 | . 2 . . . Derelict Logs Recovered 1 | . . 1 . . Drone Launches . | . . . . . Drone Recoveries . | . . . . . Exploration | -11 -10 -10 -10 -9 ------------- Run | Scr Mat Min Exi Min Turns Passed 3160 | 133 1628 530 726 143 Spaces Moved 2055 | 80 863 431 595 86 Core 8 | 6 . . 1 1 Treads 721 | 74 647 . . . Legs 2 | . . . 2 . Wheels 1324 | . 216 431 592 85 Hover . | . . . . . Flight . | . . . . . Fastest Speed 50 | 50 100 110 80 110 Average Speed 130 | 151 147 110 115 134 Slowest Speed 1500 | 160 160 110 1500 1350 Overloaded Moves . | . . . . . Propulsion Burnouts . | . . . . . Robots Hopped . | . . . . . Cave-ins Triggered . | . . . . . Exploration Rate (%) 57 | 5 89 77 88 29 Regions Visited 4 Branch Regions 3 Pre-discovered Areas 2 | . . 1 1 . Known Exits Taken . | . . . . . Unknown Exits Taken 4 | 1 1 1 1 . Scrap Searched 2 | . . 2 . . Spaces Dug . | . . . . . Terrain Destroyed 74 | . 5 . . 69 Melee . | . . . . . Projectile . | . . . . . AOE 74 | . 5 . . 69 Actions | -11 -10 -10 -10 -9 --------- Run | Scr Mat Min Exi Min Total 2337 | 89 1044 463 634 107 Wait 69 | . 49 16 . 4 Move 2051 | 79 862 430 594 86 Hop . | . . . . . Pick Up 44 | 4 14 2 24 . Fast Attach 15 | 6 4 . 5 . Attach 4 | . 3 1 . . Detach . | . . . . . Swap 9 | . 7 1 . 1 Drop 15 | . 4 . 11 . Fire 130 | . 101 13 . 16 Melee . | . . . . . Ram . | . . . . . Kick . | . . . . . Crush . | . . . . . Escape Stasis . | . . . . . Rewire . | . . . . . Trap . | . . . . . Miscellaneous . | . . . . . Route ------- -11/Scrapyard -10/Materials (discovered 3 exits: [*Mat x2] / [*Min]) -10/Mines -10/Exiles -9/Mines History --------- Turn | Location | Event 9 | -11/Scrapyard | Discovered new exit (range 15) 134 | -11/Scrapyard | Entered Materials 323 | -10/Materials | Build established: Mutant 919 | -10/Materials | Discovered new exit (range 6) 1380 | -10/Materials | Discovered new exit (range 11) 1516 | -10/Materials | Discovered new exit (range 8) 1750 | -10/Materials | Build established: Hauler-Mutant 1762 | -10/Materials | Entered Mines 1773 | -10/Mines | Joined a pair of Derelicts in attacking an 0b10 outpost 2279 | -10/Mines | Learned location of Storage (-7) 2287 | -10/Mines | Deemed a non-threat by the Exiles lab entrance 2288 | -10/Mines | Discovered new exit (range 5) 2292 | -10/Mines | Entered Exiles 2319 | -10/Exiles | Met 8R-AWN 2335 | -10/Exiles | Met EX-HEX 2393 | -10/Exiles | Met EX-DEC 2433 | -10/Exiles | Learned location of Zion (-7) 2533 | -10/Exiles | Visited The Gauntlet 2741 | -10/Exiles | Met EX-BIN 2759 | -10/Exiles | Aligned with FarCom system 2760 | -10/Exiles | Given EX-Vault access code 2787 | -10/Exiles | Opened EX-Vault 2797 | -10/Exiles | Found Potential Leg 2800 | -10/Exiles | Found Potential Leg 2831 | -10/Exiles | Found Gui. Plasma Cannon 2865 | -10/Exiles | Warned to stay clear of 0b10 Research branches 3002 | -10/Exiles | Discovered new exit (range 15) 3018 | -10/Exiles | Stole two prototypes: Potential Leg, Gui. Plasma Cannon 3018 | -10/Exiles | Entered Mines 3074 | -9/Mines | Met a Derelict bent on vengeance 3093 | -9/Mines | Assembled infested the area 3144 | -9/Mines | Core integrity fell below 50% 3153 | -9/Mines | Destroyed 17 combat bots 3154 | -9/Mines | Core integrity fell below 20% 3161 | -9/Mines | Destroyed by D-53 Grenadier with Mini Grenade Launcher Last Messages --------------- 03144_ K-01 Serf collects debris. 03145_ Grenade Launcher destroyed. 03148_ The unstable cave ceiling collapses. 03148_ U-05 Engineer lays Concrete. 03151_ as-15210 destroyed. 03151_ as-66483 destroyed. 03152_ U-05 Engineer lays Concrete. 03153_ Imp. Ion Engine destroyed. 03153_ as-15212 destroyed. 03153_ U-05 Engineer lays Concrete. 03154_ The unstable cave ceiling collapses. 03154_ U-05 Engineer lays Concrete. 03155_ Wheel destroyed. 03155_ U-05 Engineer lays Concrete. 03157_ Wheel destroyed. 03157_ U-05 Engineer lays Concrete. 03158_ U-05 Engineer builds a Wall. 03158_ K-01 Serf cleans the Matter Pump. 03161_ The unstable cave ceiling collapses. 03161_ K-01 Serf cleans the Matter Pump. Map ----- +----------------------------------------------------+ | ?????????????????????????????????????????????????? | | ?????????????????????####???????????????####?????? | | ????????????????????## #?????####????## ##?#### | | ????????????????????# #???## ###### ### | | ????????????????????# #### | | ?????????????????????# | | ?????????????????????## ##### | | ??????????????????????## ##???# | | ???????????????????????## # #???# | | ????????????????????????#### ## #???# #### | | ???????????????????????????# ## #???# ##??# | | ???????????????????????????# ## #???## ##???# | | ???????????????????????????# ## #????######### | | ???????????????????????????# ## #????????# | | ??????????????????????????? ## #????????# | | ???????????????????????????# ## #????????# | | ?????????????????????????### ## #????????# | | ?????????????????????????# ## #????????# """ | | ?????????????????????????# #####" #????????# """ | | ?????????????????????????# ###?#%"#????????# """ | | ??????????????????????#### # ###" #????????# | | ?????????????????????## # #????????####### | | ?????????????????????# # #??????????????? | | ????????????????????## #??????????????? | | ????????????????????# #??????????????? | | ????????????????????# @ #??????????????? | | ????????????????????# d #??????????????? | | ???????????????????#k ###????????????? | | ??????????????????# """ du# ##???????????? | | ?????????????????# """ ## % # ##??????????? | | ????????????????# """ # #??????????? | | ???????????????# ##??????????? | | ???????????????# ### # #??????????? | | ???????????????#???##### #?????????? | | ???????????????????????## # ## ????????? | | ????????????????????????## ???????? | | ?????????????????????????## ## % ??????? | | ??????????????????????????##?# #????? | | ????????????????????????????? ##????? | | ????????????????????????????# ###?????? | | ????????????????????????????# #???????? | | ????????????????????????????### # #???????? | | ??????????????????????????????#### ## ???????? | | ??????????????????????????????????####? ??????? | | ????????????????????????????????????????###??????? | | ?????????????????????????????????????????????????? | | ?????????????????????????????????????????????????? | | ?????????????????????????????????????????????????? | | ?????????????????????????????????????????????????? | | ?????????????????????????????????????????????????? | +----------------------------------------------------+ Best States ------------- Heat Dissipation 35 Energy Generation 12 Energy Capacity 265 Matter Stores 300 Matter Capacity 300 Sight Range 16 Terrain Scan Density 10 Armor Coverage 150 Evasion (%) 44 Recoil Reduction 2 Item Schematics ----------------- Med. Storage Unit | -10/Materials | Hacked Robot Schematics ------------------ None Fabricated ------------ Nothing Alien Tech Used ----------------- None Achievements -------------- Exterminator Challenges ------------ None Game ------ Seed DamperFortressLauncher Manual? 0 Play Time 00:18:02 Cumulative 113.5 hours Start 2020.06.15 @ 07:23:42 End 2020.06.15 @ 07:40:33 Sessions 1 Manual Loads 0 Difficulty Rogue Special Mode None Game No. 51 Rogue 51 Adventurer 0 Explorer 0 Win Type - Total 6 Types 5/0/0/1/0/0/0 Lore% 68 Gallery% 62 Achievement% 55 Wizard Run 0 Options --------- ASCII 1 Keyboard 0 Movement Numpad Keybinds 0 Fullscreen 1 Font 18/SmallcapsGlow Map View 76x50 Tactical HUD 1 Map Filters NONE Filters NONE Steam 1 RUN: 6a7922fa-5be4-4fef-9476-832ea1e43488